Cogmind - Beta 12 @@@ ROGUE MODE // 2023.09.20 @ 10:57:49 Player: corgi Result: Self-destructed Performance ------------- Evolutions (1) 500 Regions Visited (2) 400 Robots Destroyed (18) 90 Value Destroyed (470) 470 Prototype IDs (0) 0 Alien Tech Used (0) 0 Bonus (0) 0 TOTAL SCORE: 1460 Bonus ------- None Cogmind --------- Core Integrity 277/400 Matter 300/300 Energy 100/100 System Corruption 2% Temperature Cool (0) Movement Walking (190) Ox1 Location -9/Materials Parts ------- > --- POWER (1) -------- (None) > --- PROPULSION (4) --- Aluminum Leg Aluminum Leg Aluminum Leg Aluminum Leg > --- UTILITY (2) ------ Heat Sink High-capacity Storage Unit > --- WEAPON (2) ------- Beam Cannon Particle Cannon > --- INVENTORY (20) --- Light Ion Engine Medium Storage Unit Large Battery (200) Large Matter Pod (150) EM Pulse Gun Heavy EM Pulse Gun Spread Laser Mace Peak State ------------ > --- POWER ------------ Ion Engine > --- PROPULSION ------- Aluminum Leg Aluminum Leg Aluminum Leg Aluminum Leg > --- UTILITY ---------- Medium Storage Unit Medium Armor Plating > --- WEAPON ----------- Particle Cannon Assault Rifle > --- INVENTORY -------- Light Ion Engine High-capacity Storage Unit Large Battery Large Matter Pod Medium Armor Plating EM Pulse Gun Spread Laser Beam Cannon Particle Cannon Light Assault Rifle [Rating: 12] Favorites ----------- Power Ion Engine Engine Ion Engine Propulsion Aluminum Leg Leg Aluminum Leg Wheel Wheel Utility Medium Storage Unit Device Heat Sink Storage Medium Storage Unit Protection Medium Armor Plating Weapon Assault Rifle Energy Gun EM Pulse Gun Energy Cannon Particle Cannon Ballistic Gun Assault Rifle Impact Weapon Mace Build | -11 -10 -9 ------- Run | Jun Mat Mat Slots Evolved 2 | . . 2 Power . | . . . Propulsion 2 | . . 2 Utility . | . . . Weapon . | . . . Parts Attached 30 | 7 7 16 Power 2 | 1 1 . Engine 2 | 1 1 . Core . | . . . Reactor . | . . . Propulsion 13 | 3 2 8 Treads . | . . . Leg 12 | 2 2 8 Wheel 1 | 1 . . Hover . | . . . Flight . | . . . Utility 6 | 1 2 3 Device 1 | . . 1 Storage 3 | 1 1 1 Processor . | . . . Hackware . | . . . Protection 2 | . 1 1 Artifact . | . . . Weapon 9 | 2 2 5 Energy Gun 2 | . 1 1 Energy Cannon 4 | . 1 3 Ballistic Gun 2 | 2 . . Ballistic Cannon . | . . . Launcher . | . . . Special Weapon . | . . . Impact Weapon 1 | . . 1 Slashing Weapon . | . . . Piercing Weapon . | . . . Special Melee Weapon . | . . . Unidentified Prototypes . | . . . Corrupted Parts 1 | . . 1 System Corruption 2 | . . 2 Parts Lost 4 | . . 4 Power 1 | . . 1 Propulsion . | . . . Utility 2 | . . 2 Weapon 1 | . . 1 Highest Loss Streak 3 | . . 3 To Critical Strikes . | . . . Average Slot Usage (%) 95 | . 95 96 Engine 13 | . 14 10 Leg 31 | . 28 42 Device 1 | . . 4 Storage 16 | . 18 11 Protection 5 | . 4 5 Energy Gun 4 | . 5 3 Energy Cannon 4 | . 2 11 Ballistic Gun 16 | . 20 4 Naked Turns . | . . . Heaviest Build 53 | 11 26 53 Greatest Support 40 | 20 20 40 Greatest Overweight (x) 2 | 2 1 1 Average Overweight (x) . | 1 . . Largest Inventory Capacity 20 | 8 10 20 Average Capacity 10 | 7 9 13 Most Carried 10 | 8 10 10 Average Carried 8 | 5 8 9 Final Capacity 20 | 8 10 20 Final Carried 10 | 5 10 8 Class Distribution -------------------- 81% | Mutant 18% | Scavenger-Mutant Dominant Class ---------------- Mutant | -10/Materials Scavenger-Mutant | -9/Materials Resources | -11 -10 -9 ----------- Run | Jun Mat Mat Matter Collected 779 | 260 304 215 Remotely . | . . . Salvage Created 541 | . 163 378 Parts 37 | . 12 25 Haulers Intercepted . | . . . Recyclers Shooed 1 | . 1 . Parts Field Recycled . | . . . Retrieved Matter . | . . . Parts Self-Destructed . | . . . Prevented . | . . . Kills | -11 -10 -9 ------- Run | Jun Mat Mat Combat Hostiles Destroyed 17 | . 5 12 Melee 1 | . . 1 Guns 7 | . 4 3 Cannons 8 | . 1 7 Classes Destroyed 5 | . 3 2 Watcher 1 | . 1 . Swarmer 7 | . 3 4 Grunt 8 | . 2 6 Duelist 1 | . . 1 Sentry 1 | . . 1 Best Kill Streak 4 | . 3 4 Combat Bots Only 4 | . 3 4 Max Kills in Single Turn 1 | . 1 1 Gunslinging . | . . . Exploded . | . . . Melee 1 | . . 1 Uniques/NPCs Destroyed . | . . . Combat | -11 -10 -9 -------- Run | Jun Mat Mat Damage Taken 1305 | 1 356 948 Core 238 | 1 114 123 Absorbed by Shields . | . . . Core Remaining (%) 76 | 99 54 . Volleys Fired 57 | . 26 31 Largest 2 | . 2 2 Hottest 133 | . 88 133 Shots Fired 111 | . 52 59 Gun 72 | . 44 28 Cannon 39 | . 8 31 Launcher . | . . . Special . | . . . Kinetic 57 | . 40 17 Thermal 44 | . 8 36 Explosive . | . . . Electromagnetic 10 | . 4 6 Robot Hit Streak 6 | . 2 6 Robot Miss Streak 7 | . 6 7 Penetration Max . | . . . Secondary Targets 1 | . 1 . Max Gunslinging Chain 1 | . 1 . Shots Hit Robots 56 | . 17 39 Core Hits 29 | . 10 19 Critical Kills . | . . . Critical Parts Destroyed 1 | . . 1 Critical Strikes 2 | . 1 1 Destroy 1 | . . 1 Corrupt 1 | . 1 . Melee Attacks 13 | . . 13 Impact 13 | . . 13 Slashing . | . . . Piercing . | . . . Sneak Attacks 1 | . . 1 Combat Hostiles . | . . . Follow-up Attacks . | . . . Damage Inflicted 1187 | 3 267 917 Guns 420 | . 197 223 Cannons 412 | . 60 352 Explosions . | . . . Melee 336 | . . 336 Ramming 19 | 3 10 6 Kinetic 272 | . 149 123 Thermal 461 | . 60 401 Explosive . | . . . Electromagnetic 99 | . 48 51 Impact 336 | . . 336 Slashing . | . . . Piercing . | . . . Highest Corruption 2 | . . 2 Average Corruption 2 | . . 2 Corruption Purged . | . . . Corruption Blocked . | . . . Effects 9 | . . 9 Message Errors 2 | . . 2 Matter Fused 3 | . . 3 Heat Flow Errors 1 | . . 1 Parts Rejected 1 | . . 1 Data Loss (minor) 1 | . . 1 Alerts 1 | . . 1 Overload Shots . | . . . Overflow Damage 8 | . . 8 Projectiles . | . . . Explosions . | . . . Melee 8 | . . 8 Knockbacks 5 | . . 5 Impact 5 | . . 5 Kinetic . | . . . Secondary . | . . . Self-Inflicted Damage 1 | 1 . . Shots . | . . . Rammed 2 | 2 . . Targets Rammed 7 | 3 2 2 Kicked 5 | 1 2 2 Crushed . | . . . Highest Temperature 419 | . 66 419 Average Temperature 88 | . 24 110 Received Heat Transfer 333 | . 48 285 Effects 2 | . . 2 Energy Bleed 1 | . . 1 Interference 1 | . . 1 Siege Activations . | . . . Robots Corrupted . | . . . Combat Hostiles . | . . . Parts Fried 1 | . . 1 Impact Corruptions 1 | . . 1 Robots Melted . | . . . Combat Hostiles . | . . . Parts Melted . | . . . Heat Transferred 837 | . 111 726 Parts Sabotaged . | . . . Parts Stolen . | . . . Parts Stripped . | . . . Power Chain Reactions . | . . . Missiles Intercepted . | . . . Alert | -11 -10 -9 ------- Run | Jun Mat Mat Peak Influence 245 | . 182 245 Initial 5 | . . 5 Average 48 | . 38 83 Maximum Alert Level 1 | . . 1 Low Security (%) 98 | 100 100 93 Level 1 1 | . . 6 Level 2 . | . . . Level 3 . | . . . Level 4 . | . . . Level 5 . | . . . High Security . | . . . Max Security . | . . . Squads Dispatched 3 | . 2 1 Investigation 1 | . 1 . Extermination . | . . . Reinforcement 2 | . 1 1 Assault . | . . . Garrison . | . . . Intercept . | . . . Searches Triggered . | . . . Construction Impeded . | . . . Haulers Reinforced . | . . . Active Scanning Responses . | . . . Cargo Convoy Interrupts . | . . . Stealth | -11 -10 -9 --------- Run | Jun Mat Mat Distress Signals 4 | . . 4 Communications Jammed . | . . . Distress Signals . | . . . Times Spotted 44 | . 20 24 Peak Tracking Total 11 | . 3 11 Tactical Retreats 4 | . 2 2 Traps | -11 -10 -9 ------- Run | Jun Mat Mat Traps Triggered 1 | . 1 . Indirectly . | . . . Trap Hack Attempts . | . . . Triggered . | . . . Disarmed . | . . . Reprogrammed . | . . . Reused . | . . . Traps Extracted . | . . . Installed . | . . . Triggered . | . . . Machines | -11 -10 -9 ---------- Run | Jun Mat Mat Machines Disabled 2 | . 2 . Max in Single Turn 1 | . 1 . Machines Repaired . | . . . Machines Sabotaged . | . . . Overloaded Fab Kills . | . . . Hacking | -11 -10 -9 --------- Run | Jun Mat Mat Machines Accessed 3 | . 3 . Terminals 3 | . 3 . Fabricators . | . . . Repair Stations . | . . . Recycling Units . | . . . Scanalyzers . | . . . Garrison Access . | . . . Total Hacks 9 | . 9 . Successful 7 | . 7 . Failed . | . . . Catastrophic . | . . . Database Lockouts 2 | . 2 . Manual . | . . . Terminals 9 | . 9 . Fabricators . | . . . Repair Stations . | . . . Recycling Units . | . . . Scanalyzers . | . . . Garrison Access . | . . . Terminal Hacks 7 | . 7 . Record 5 | . 5 . Alert Level 1 | . 1 . Locate Traps 1 | . 1 . Fabricator Hacks . | . . . Repair Station Hacks . | . . . Recycling Unit Hacks . | . . . Scanalyzer . | . . . Garrison Access Hacks . | . . . Unauthorized Hacks . | . . . Terminals . | . . . Fabricators . | . . . Repair Stations . | . . . Recycling Units . | . . . Scanalyzers . | . . . Garrison Access . | . . . Data Cores Recovered . | . . . Used . | . . . Hacking Detections 1 | . 1 . Full Trace Events . | . . . Feedback Events . | . . . Feedback Blocked . | . . . Robot Schematics Acquired . | . . . Robots Built . | . . . Authchips . | . . . Time . | . . . Total Robot Build Rating . | . . . Part Schematics Acquired . | . . . Parts Built . | . . . Authchips . | . . . Time . | . . . Total Part Build Rating . | . . . Parts Repaired . | . . . Time . | . . . Parts Recycled . | . . . Recycled Matter . | . . . Retrieved Matter . | . . . Retrieved Components . | . . . Parts Scanalyzed . | . . . Part Schematics Acquired . | . . . Parts Damaged . | . . . Bothacking | -11 -10 -9 ------------ Run | Jun Mat Mat Used RIF Installer . | . . . Robots Hacked . | . . . Non-combat . | . . . Combat . | . . . Robot Hacks Applied . | . . . Relay Couplers Released . | . . . Fabnet Peak Effective % . | . . . Robots Rewired . | . . . Allies Hacked . | . . . Hacks Repelled . | . . . Allies | -11 -10 -9 -------- Run | Jun Mat Mat Total Allies . | . . . Largest Group . | . . . Highest-Rated Group . | . . . Highest-Rated Ally . | . . . Total Orders . | . . . Ally Attacks . | . . . Total Damage . | . . . Kills . | . . . Allies Corrupted . | . . . Allies Melted . | . . . Intel | -11 -10 -9 ------- Run | Jun Mat Mat Robot Analysis Total . | . . . Derelict Logs Recovered . | . . . Drone Launches . | . . . Drone Recoveries . | . . . Exploration | -11 -10 -9 ------------- Run | Jun Mat Mat Turns Passed 2782 | 99 1991 692 Spaces Moved 1572 | 65 1140 367 Core 52 | 52 . . Treads . | . . . Legs 1520 | 13 1140 367 Wheels . | . . . Hover . | . . . Flight . | . . . Fastest Speed 50 | 50 120 120 Average Speed 155 | 120 161 141 Slowest Speed 190 | 150 190 190 Overloaded Moves . | . . . Propulsion Burnouts . | . . . Robots Hopped . | . . . Cave-ins Triggered . | . . . Exploration Rate (%) 39 | 4 98 16 Regions Visited 2 Branch Regions . Pre-discovered Areas . | . . . Known Exits Taken . | . . . Unknown Exits Taken 2 | 1 1 . Scrap Searched . | . . . Spaces Dug . | . . . Terrain Destroyed . | . . . Melee . | . . . Projectile . | . . . AOE . | . . . Terrain Rammed . | . . . Walls Destroyed . | . . . Machines Disabled . | . . . Actions | -11 -10 -9 --------- Run | Jun Mat Mat Total 1780 | 83 1240 457 Wait 53 | . 40 13 Move 1571 | 65 1139 367 Hop . | . . . Pick Up 30 | 8 16 6 Fast Attach 9 | 3 . 6 Attach 11 | 4 2 5 Detach 1 | 1 . . Swap 10 | . 5 5 Drop 19 | . 10 9 Fire 57 | . 26 31 Melee 13 | . . 13 Ram 2 | 2 . . Kick 4 | . 2 2 Crush . | . . . Escape Stasis . | . . . Rewire . | . . . Trap . | . . . Miscellaneous . | . . . Route ------- -11/Junkyard -10/Materials (discovered 5 exits: [*Mat x3] / [*Min x2]) -9/Materials History --------- Turn | Location | Event 18 | -11/Junkyard | Discovered new exit (range 16) 100 | -11/Junkyard | Entered Materials 216 | -10/Materials | Discovered new exit (range 7) 306 | -10/Materials | Build established: Mutant 374 | -10/Materials | Discovered new exit (range 15) 438 | -10/Materials | Central database locked down 588 | -10/Materials | Discovered new exit (range 3) 1377 | -10/Materials | Discovered new exit (range 16) 1546 | -10/Materials | Discovered new exit (range 11) 1620 | -10/Materials | Central database locked down 2091 | -10/Materials | Entered another Materials area 2091 | -9/Materials | Evolved 2 slots: Propulsion x2 2458 | -9/Materials | Lost 3 parts (2u1w) 2740 | -9/Materials | Build established: Scavenger-Mutant 2783 | -9/Materials | Self-destructed Last Messages --------------- 02531_ K-01 Serf collects debris. 02545_ HORSX,JVKEUVBAURR>RKHKBK89=XS9H/ 02547_ Acquired 10 matter. 02570_ System corrupted: Heat flow error (+255). 02573_ R-06 Scavenger collects Sml. Laser. 02627_ G-34 Mercenary destroyed. 02627_ K-01 Serf collects debris. 02628_ R-06 Scavenger collects Ion Engine. 02629_ K-01 Serf collects debris. 02634_ M-13 Machinist repairs K-01 Serf. 02660_ Acquired Hvy. EM Pulse Gun. 02661_ Dropped Aluminum Leg. 02662_ Dropped Particle Cannon. 02683_ System corrupted: Matter fused (-5). 02702_ System corrupted: Matter fused (-7). 02731_ Acquired 12 matter. 02755_ W-16 Scout sends out distress signal. 02768_ S-10 Pest destroyed. 02776_ Ion Engine destroyed. 02782_ T-07 Excavator destroyed. Map ----- +----------------------------------------------------+ | ?????????????????????????????????????????????????? | | ?????????????????????????????????????????????????? | | ?????????????????????????????????????????????????? | | ?????????????????????????????????????????????????? | | ?????????????????????????????????????????????????? | | ?????????????????????????????????????????????????? | | ?????????????????????????????????????????????????? | | ?????????????????????????????????????????????????? | | ?????????????????????????????????????????????????? | | ?????????????????????????????????????????????????? | | ?????????????????????????????????????????????????? | | ?????????????????????????????????????????????????? | | ?????????????????????????????????????????????????? | | ???????????????????????#####?????????????????????? | | ???????????????????????# ?????????????????????? | | ???????????????????????# ?????????????????????? | | ???????????????????????# ?????????????????????? | | ???????????????????????# #?????????????????????? | | ???????????????????????# #?????????????????????? | | ???????????????????????# #?????????????????????? | | ???????????????????????+ #########?????????????? | | ???????????????????????# ## #?????????????? | | ???????????????????????# !=## """" #?????????????? | | ???????????????????????# |%## """" #?????????????? | | ???????????????????????#u =## """" ##########????? | | ???????????????????????# @ ## # #????? | | ???????????????????????# ## # """" =#????? | | ???????????????????????# ## ! # """" ###### | | ???????????????????????# ## !! # """" # | | ???????????????????????# ## + # % | | ???????????????????????# ## """" # """" # % | | ???????????????????????# ## """" # """" # ## | | ???????????????????????# a# """" # """" # ## | | ???????????????????????# ## # #%% ## | | ???????????????????????# #######/######+### % ## | | ???????????????????????# u % ## | | ????????????????????"" + ## | | ????????????????????"" #%s% ## | | ???????????????????? # #################### ## | | ??????????????????""""?#s???????????????????# ## | | ??????????????????""""?# ???????????????????# ## | | ????????????????? """??# ???????????????????# ## | | ???????????????????????# ???????????????????# #? | | ???????????????????????# ???????????????????# #? | | ??????????????????????? ???????????????????# #? | | ??????????????????????? ???????????????????# #? | | ??????????????????????? ????????????????????# ? | | ???????????????????????#????????????????????+ ? | | ????????????????????????????????????????????# ? | | ????????????????????????????????????????????# ## | +----------------------------------------------------+ Best States ------------- Heat Dissipation 38 Energy Generation 10 Energy Capacity 250 Matter Stores 300 Matter Capacity 300 Sight Range 16 Terrain Scan Density 10 Armor Coverage 225 Evasion (%) 55 Item Schematics ----------------- None Robot Schematics ------------------ None Fabricated ------------ Nothing Alien Tech Used ----------------- None Achievements -------------- None Challenges ------------ None Game ------ Seed ColdBiomechanicalNanovents Manual? 0 Play Time 00:50:52 Cumulative 3.8 hours Start 2023.09.19 @ 18:27:11 End 2023.09.20 @ 10:57:49 Sessions 4 Manual Loads 0 Difficulty Rogue Special Mode None Game No. 9 Rogue 7 Adventurer 0 Explorer 2 Win Type - Total 0 Types 0/0/0/0/0/0/0/0/0 Lore% 1 Gallery% 4 Achievement% 1 Wizard Run 0 Options --------- ASCII 0 Keyboard 0 Movement Arrows Keybinds 0 Fullscreen 0 Font 16/Terminus Map View 76x50 Tactical HUD 1 Map Filters NONE Filters NONE Steam 1 RUN: 2f881091-ca8c-447f-8b5b-9e40adc61f49